[Event "*** Titled Tuesday Blitz"]
[Site "Chess.com"]
[Date "2020.05.19"]
[Round "3"]
[White "Mikhail_Golubev"]
[Black "Orest_Vovk"]
[Result "1-0"]
[WhiteElo "2558"]
[BlackElo "2362"]
[TimeControl "180+1"]
[EndTime "12:27:52 PDT"]
[Termination "Mikhail_Golubev won by resignation"]

1. e4 {[%clk 0:02:48.3]} 1... Nc6 {[%clk 0:02:56.9]} 2. Nf3 {[%clk 0:02:43.4]}
2... f5 {[%clk 0:02:54.9]} 3. exf5 {[%clk 0:02:41.4]} 3... d5 {[%clk 0:02:55.1]}
4. Bb5 {[%clk 0:02:39]} 4... Bxf5 {[%clk 0:02:54.7]} 5. Ne5 {[%clk 0:02:31.2]}
5... Qd6 {[%clk 0:02:54.3]} 6. d4 {[%clk 0:02:28.8]} 6... Nf6 {[%clk 0:02:54.3]}
7. O-O {[%clk 0:02:24.6]} 7... Nd7 {[%clk 0:02:52.1]} 8. Bf4 {[%clk 0:02:14.5]}
8... Ncxe5 {[%clk 0:02:38.1]} 9. Bxe5 {[%clk 0:02:10.8]} 9... Qg6 {[%clk
0:02:22.5]} 10. Bxd7+ {[%clk 0:01:46.7]} 10... Kxd7 {[%clk 0:02:03.7]} 11. c4
{[%clk 0:01:14.1]} 11... e6 {[%clk 0:02:03.2]} 12. Nc3 {[%clk 0:01:01.5]} 12...
Bd3 {[%clk 0:01:40.1]} 13. Qa4+ {[%clk 0:00:43.1]} 13... c6 {[%clk 0:01:36.7]}
14. cxd5 {[%clk 0:00:35]} 14... exd5 {[%clk 0:01:20.3]} 15. Rfe1 {[%clk
0:00:29.6]} 15... b5 {[%clk 0:01:00.9]} 16. Qa6 {[%clk 0:00:27.7]} 16... Rc8
{[%clk 0:00:45.3]} 17. Qb7+ {[%clk 0:00:25.9]} 17... Kd8 {[%clk 0:00:45.4]} 18.
Bg3 {[%clk 0:00:16.1]} 18... Bf5 {[%clk 0:00:27]} 19. Bh4+ {[%clk 0:00:14.8]}
1-0

[Event "*** Titled Tuesday Blitz"]
[Site "Chess.com"]
[Date "2020.05.19"]
[Round "3"]
[White "jonaszmb"]
[Black "ChronicUnhappiness"]
[Result "1-0"]
[WhiteElo "2519"]
[BlackElo "2285"]
[TimeControl "180+1"]
[EndTime "12:27:52 PDT"]
[Termination "jonaszmb won by resignation"]

1. e4 {[%clk 0:03:00.9]} 1... d6 {[%clk 0:02:58.7]} 2. d4 {[%clk 0:03:00.6]}
2... Nf6 {[%clk 0:02:58.7]} 3. f3 {[%clk 0:03:01.1]} 3... g6 {[%clk 0:02:54.3]}
4. c4 {[%clk 0:03:01]} 4... Bg7 {[%clk 0:02:51.4]} 5. Nc3 {[%clk 0:03:01.1]}
5... O-O {[%clk 0:02:50.3]} 6. Be3 {[%clk 0:03:01.3]} 6... c5 {[%clk 0:02:50.1]}
7. Nge2 {[%clk 0:03:00.2]} 7... cxd4 {[%clk 0:02:44.3]} 8. Nxd4 {[%clk
0:03:01.1]} 8... Nc6 {[%clk 0:02:44.4]} 9. Qd2 {[%clk 0:03:00.1]} 9... Nxd4
{[%clk 0:02:42.8]} 10. Bxd4 {[%clk 0:03:00.4]} 10... Bd7 {[%clk 0:02:42.9]} 11.
Be2 {[%clk 0:02:57.8]} 11... Bc6 {[%clk 0:02:42.7]} 12. b4 {[%clk 0:02:57.5]}
12... b6 {[%clk 0:02:35.1]} 13. O-O {[%clk 0:02:54.6]} 13... Rc8 {[%clk
0:02:34.3]} 14. a4 {[%clk 0:02:43.5]} 14... Nd7 {[%clk 0:01:40]} 15. Bxg7 {[%clk
0:02:30.1]} 15... Kxg7 {[%clk 0:01:40.9]} 16. a5 {[%clk 0:02:29.3]} 16... Rc7
{[%clk 0:01:25.3]} 17. axb6 {[%clk 0:02:18.3]} 17... axb6 {[%clk 0:01:20.5]} 18.
Ra3 {[%clk 0:01:58.7]} 18... Kg8 {[%clk 0:01:19.3]} 19. Rfa1 {[%clk 0:01:58.1]}
19... h5 {[%clk 0:01:12.7]} 20. f4 {[%clk 0:01:41.2]} 20... Nf6 {[%clk
0:01:07.8]} 21. Qe3 {[%clk 0:01:24.7]} 21... e5 {[%clk 0:00:36.5]} 22. f5 {[%clk
0:01:17.9]} 22... Nd7 {[%clk 0:00:35.9]} 23. Qh6 {[%clk 0:01:09.5]} 23... Qf6
{[%clk 0:00:34.2]} 24. Rf1 {[%clk 0:01:04.2]} 24... Qg7 {[%clk 0:00:33.3]} 25.
Qd2 {[%clk 0:00:58.4]} 25... Qf6 {[%clk 0:00:27.9]} 26. fxg6 {[%clk 0:00:56.7]}
26... Qxg6 {[%clk 0:00:27.6]} 27. Nd5 {[%clk 0:00:48.6]} 27... Bxd5 {[%clk
0:00:21.4]} 28. Rg3 {[%clk 0:00:48.4]} 28... Be6 {[%clk 0:00:18]} 29. Rxg6+
{[%clk 0:00:46.1]} 29... fxg6 {[%clk 0:00:17.7]} 30. Qxd6 {[%clk 0:00:46.7]}
30... Rxf1+ {[%clk 0:00:15]} 31. Bxf1 {[%clk 0:00:45.6]} 1-0

[Event "*** Titled Tuesday Blitz"]
[Site "Chess.com"]
[Date "2020.05.19"]
[Round "3"]
[White "Szparu"]
[Black "kuli4ik"]
[Result "0-1"]
[WhiteElo "2535"]
[BlackElo "2788"]
[TimeControl "180+1"]
[EndTime "12:27:56 PDT"]
[Termination "kuli4ik won by resignation"]

1. e4 {[%clk 0:02:41]} 1... Nf6 {[%clk 0:02:57.5]} 2. e5 {[%clk 0:02:40.8]} 2...
Nd5 {[%clk 0:02:57.2]} 3. d4 {[%clk 0:02:41.2]} 3... d6 {[%clk 0:02:57.4]} 4. c4
{[%clk 0:02:41.6]} 4... Nb6 {[%clk 0:02:57.6]} 5. f4 {[%clk 0:02:41.9]} 5... g6
{[%clk 0:02:57.3]} 6. Nc3 {[%clk 0:02:38.9]} 6... Bg7 {[%clk 0:02:57.5]} 7. Be3
{[%clk 0:02:36.5]} 7... O-O {[%clk 0:02:57]} 8. Be2 {[%clk 0:02:33.7]} 8... dxe5
{[%clk 0:02:52]} 9. dxe5 {[%clk 0:02:18.4]} 9... Nc6 {[%clk 0:02:51.5]} 10. Nf3
{[%clk 0:01:54.8]} 10... Be6 {[%clk 0:02:45.7]} 11. b3 {[%clk 0:01:40.6]} 11...
f6 {[%clk 0:02:45.4]} 12. exf6 {[%clk 0:01:38.6]} 12... exf6 {[%clk 0:02:45.5]}
13. O-O {[%clk 0:01:33.7]} 13... Re8 {[%clk 0:02:41.3]} 14. Bf2 {[%clk
0:01:15.1]} 14... Bf7 {[%clk 0:02:32.3]} 15. Re1 {[%clk 0:01:03.2]} 15... f5
{[%clk 0:02:15.9]} 16. Rc1 {[%clk 0:01:00.5]} 16... Qxd1 {[%clk 0:02:12.3]} 17.
Bxd1 {[%clk 0:00:59.9]} 17... Nb4 {[%clk 0:02:11.2]} 18. Be2 {[%clk 0:00:44.7]}
18... Bxc3 {[%clk 0:01:59.8]} 19. Rxc3 {[%clk 0:00:44.1]} 19... Nxa2 {[%clk
0:02:00.4]} 20. Re3 {[%clk 0:00:41.3]} 20... Rxe3 {[%clk 0:01:58.3]} 21. Bxe3
{[%clk 0:00:42]} 21... Nc3 {[%clk 0:01:58]} 22. Bf1 {[%clk 0:00:37.9]} 22... Nd7
{[%clk 0:01:51.4]} 23. Ng5 {[%clk 0:00:18.1]} 23... h6 {[%clk 0:01:46.1]} 24.
Nxf7 {[%clk 0:00:18.1]} 24... Kxf7 {[%clk 0:01:47]} 25. Bd4 {[%clk 0:00:16.6]}
25... Ne4 {[%clk 0:01:45.7]} 26. g4 {[%clk 0:00:16.8]} 26... c5 {[%clk
0:01:41.3]} 27. Bb2 {[%clk 0:00:16.3]} 27... Ndf6 {[%clk 0:01:35.4]} 28. gxf5
{[%clk 0:00:15.2]} 28... gxf5 {[%clk 0:01:35.4]} 29. Bh3 {[%clk 0:00:15.8]}
29... Rg8+ {[%clk 0:01:26.9]} 30. Kf1 {[%clk 0:00:15.7]} 30... Ng4 {[%clk
0:01:21.5]} 31. Re2 {[%clk 0:00:10.9]} 31... h5 {[%clk 0:01:19.1]} 32. Ke1
{[%clk 0:00:07]} 32... Rg6 {[%clk 0:01:17.5]} 33. Bg2 {[%clk 0:00:05.7]} 33...
Rb6 {[%clk 0:01:15.8]} 34. Bxe4 {[%clk 0:00:04.3]} 34... fxe4 {[%clk 0:01:15.6]}
35. Rxe4 {[%clk 0:00:04.8]} 35... Rxb3 {[%clk 0:01:13.7]} 36. Bh8 {[%clk
0:00:04.7]} 36... Re3+ {[%clk 0:01:06.1]} 0-1

[Event "*** Titled Tuesday Blitz"]
[Site "Chess.com"]
[Date "2020.05.19"]
[Round "3"]
[White "Savagelittlemole"]
[Black "OK97"]
[Result "0-1"]
[WhiteElo "2533"]
[BlackElo "2753"]
[TimeControl "180+1"]
[EndTime "12:28:03 PDT"]
[Termination "OK97 won by resignation"]

1. e4 {[%clk 0:03:00.9]} 1... e5 {[%clk 0:02:58.6]} 2. Nf3 {[%clk 0:03:00.9]}
2... Nc6 {[%clk 0:02:58.7]} 3. Bb5 {[%clk 0:03:01.4]} 3... a6 {[%clk 0:02:58.5]}
4. Ba4 {[%clk 0:03:01.9]} 4... b5 {[%clk 0:02:58.3]} 5. Bb3 {[%clk 0:03:01.3]}
5... Na5 {[%clk 0:02:58.8]} 6. O-O {[%clk 0:02:54.4]} 6... d6 {[%clk 0:02:59]}
7. d4 {[%clk 0:02:53.9]} 7... exd4 {[%clk 0:02:59.2]} 8. Nxd4 {[%clk 0:02:54.1]}
8... Bb7 {[%clk 0:02:59.3]} 9. Re1 {[%clk 0:02:39.5]} 9... c5 {[%clk 0:02:56]}
10. e5 {[%clk 0:02:06.9]} 10... dxe5 {[%clk 0:02:55.7]} 11. Rxe5+ {[%clk
0:02:07.7]} 11... Be7 {[%clk 0:02:30.4]} 12. Bd2 {[%clk 0:01:20.7]} 12... Qxd4
{[%clk 0:02:19]} 13. Qe2 {[%clk 0:01:13.4]} 13... Nxb3 {[%clk 0:02:05.5]} 14.
axb3 {[%clk 0:01:14.3]} 14... O-O-O {[%clk 0:02:02]} 15. Rxe7 {[%clk 0:00:56.5]}
15... Nxe7 {[%clk 0:02:01.8]} 16. Qxe7 {[%clk 0:00:57.4]} 16... Qd5 {[%clk
0:01:48.6]} 17. f3 {[%clk 0:00:53]} 17... Rhe8 {[%clk 0:01:47.8]} 18. Qh4 {[%clk
0:00:51.2]} 18... Qd4+ {[%clk 0:01:30.9]} 19. Qxd4 {[%clk 0:00:50.4]} 19... cxd4
{[%clk 0:01:24.9]} 20. Na3 {[%clk 0:00:44.6]} 20... Re2 {[%clk 0:01:20.9]} 21.
Rd1 {[%clk 0:00:44.6]} 21... d3 {[%clk 0:01:13.4]} 22. Ba5 {[%clk 0:00:27.8]}
22... Rd7 {[%clk 0:01:08.3]} 23. cxd3 {[%clk 0:00:14.8]} 23... Rxb2 {[%clk
0:01:06.2]} 24. Rc1+ {[%clk 0:00:14.1]} 24... Kb8 {[%clk 0:01:06.7]} 25. Nc2
{[%clk 0:00:14.4]} 25... Rxd3 {[%clk 0:00:56.7]} 26. Nb4 {[%clk 0:00:14.2]}
26... Rdxb3 {[%clk 0:00:45.2]} 27. Nc2 {[%clk 0:00:08.9]} 27... Rb1 {[%clk
0:00:41.1]} 28. Rxb1 {[%clk 0:00:08.9]} 28... Rxb1+ {[%clk 0:00:41.3]} 29. Kf2
{[%clk 0:00:09.3]} 29... Rb2 {[%clk 0:00:39.4]} 0-1

[Event "*** Titled Tuesday Blitz"]
[Site "Chess.com"]
[Date "2020.05.19"]
[Round "3"]
[White "Escanor89"]
[Black "Paralinch"]
[Result "0-1"]
[WhiteElo "2569"]
[BlackElo "2869"]
[TimeControl "180+1"]
[EndTime "12:28:05 PDT"]
[Termination "Paralinch won on time"]

1. c4 {[%clk 0:03:00.9]} 1... c5 {[%clk 0:02:59.8]} 2. Nf3 {[%clk 0:03:00.3]}
2... Nc6 {[%clk 0:02:59.2]} 3. d4 {[%clk 0:02:57.2]} 3... cxd4 {[%clk
0:03:00.1]} 4. Nxd4 {[%clk 0:02:56.5]} 4... g6 {[%clk 0:03:00.7]} 5. e4 {[%clk
0:02:55.8]} 5... Nf6 {[%clk 0:03:00.8]} 6. Nc3 {[%clk 0:02:55.3]} 6... d6 {[%clk
0:03:01.4]} 7. Be2 {[%clk 0:02:53.8]} 7... Nxd4 {[%clk 0:03:00.3]} 8. Qxd4
{[%clk 0:02:53.1]} 8... Bg7 {[%clk 0:03:01]} 9. Be3 {[%clk 0:02:53.1]} 9... O-O
{[%clk 0:03:00.6]} 10. Qd2 {[%clk 0:02:52.3]} 10... a5 {[%clk 0:03:01.2]} 11.
Rc1 {[%clk 0:02:49.8]} 11... a4 {[%clk 0:03:01.1]} 12. O-O {[%clk 0:02:43.4]}
12... Qa5 {[%clk 0:02:54.8]} 13. Rfd1 {[%clk 0:02:38.2]} 13... Be6 {[%clk
0:02:54.4]} 14. f3 {[%clk 0:02:35.7]} 14... Rfc8 {[%clk 0:02:54.1]} 15. Nb5
{[%clk 0:02:05.3]} 15... Qxd2 {[%clk 0:02:48.4]} 16. Rxd2 {[%clk 0:02:05]} 16...
Nd7 {[%clk 0:02:47.4]} 17. Nd4 {[%clk 0:02:01]} 17... Nc5 {[%clk 0:02:42.3]} 18.
Nxe6 {[%clk 0:01:49.9]} 18... fxe6 {[%clk 0:02:43.2]} 19. Rb1 {[%clk 0:01:45.9]}
19... Kf7 {[%clk 0:02:40.5]} 20. Kf2 {[%clk 0:01:45.6]} 20... a3 {[%clk
0:02:35.1]} 21. b3 {[%clk 0:01:42.3]} 21... Bb2 {[%clk 0:02:35.1]} 22. Bxc5
{[%clk 0:01:26.1]} 22... Rxc5 {[%clk 0:02:27.5]} 23. f4 {[%clk 0:01:18.6]} 23...
e5 {[%clk 0:02:23.6]} 24. g3 {[%clk 0:01:13.7]} 24... Kg7 {[%clk 0:02:21.2]} 25.
Rd5 {[%clk 0:01:06.8]} 25... Rc7 {[%clk 0:02:08.6]} 26. Rbd1 {[%clk 0:01:03.3]}
26... Rf8 {[%clk 0:02:07.7]} 27. Kf3 {[%clk 0:00:55.5]} 27... exf4 {[%clk
0:02:07.3]} 28. gxf4 {[%clk 0:00:55.3]} 28... Be5 {[%clk 0:02:05.1]} 29. f5
{[%clk 0:00:47.1]} 29... gxf5 {[%clk 0:02:06]} 30. Rg1+ {[%clk 0:00:45.9]} 30...
Kh8 {[%clk 0:01:58.4]} 31. h3 {[%clk 0:00:27.1]} 31... Rcc8 {[%clk 0:01:47.4]}
32. Ra5 {[%clk 0:00:20.6]} 32... fxe4+ {[%clk 0:01:44.3]} 33. Kxe4 {[%clk
0:00:20.5]} 33... Rf4+ {[%clk 0:01:44.9]} 34. Kd3 {[%clk 0:00:20.6]} 34... Bb2
{[%clk 0:01:30.8]} 35. Rg4 {[%clk 0:00:19.5]} 35... Rf7 {[%clk 0:01:22.2]} 36.
Ra7 {[%clk 0:00:18.6]} 36... e5 {[%clk 0:01:22.7]} 37. Re4 {[%clk 0:00:13.5]}
37... Rg8 {[%clk 0:01:13.1]} 38. Bg4 {[%clk 0:00:12.6]} 38... h5 {[%clk
0:01:13.4]} 39. Bxh5 {[%clk 0:00:11]} 39... Rg3+ {[%clk 0:01:14]} 40. Ke2 {[%clk
0:00:06.5]} 40... Rg2+ {[%clk 0:01:13.6]} 41. Ke1 {[%clk 0:00:06.1]} 41... Bc3+
{[%clk 0:01:12.6]} 42. Kd1 {[%clk 0:00:03.4]} 42... Rf1+ {[%clk 0:01:12.3]} 0-1

[Event "*** Titled Tuesday Blitz"]
[Site "Chess.com"]
[Date "2020.05.19"]
[Round "3"]
[White "stolencandy13"]
[Black "dianosky"]
[Result "1-0"]
[WhiteElo "2557"]
[BlackElo "2356"]
[TimeControl "180+1"]
[EndTime "12:28:05 PDT"]
[Termination "stolencandy13 won on time"]

1. e4 {[%clk 0:03:00.9]} 1... c5 {[%clk 0:02:59.5]} 2. Nf3 {[%clk 0:02:59.3]}
2... a6 {[%clk 0:02:59.9]} 3. c4 {[%clk 0:02:54]} 3... d6 {[%clk 0:02:59.4]} 4.
d4 {[%clk 0:02:50.9]} 4... cxd4 {[%clk 0:02:59.5]} 5. Nxd4 {[%clk 0:02:51.8]}
5... Nf6 {[%clk 0:02:59.4]} 6. f3 {[%clk 0:02:45.8]} 6... e6 {[%clk 0:02:50.3]}
7. Nc3 {[%clk 0:02:42.3]} 7... b6 {[%clk 0:02:50.2]} 8. Be3 {[%clk 0:02:37.7]}
8... Nbd7 {[%clk 0:02:50.3]} 9. Be2 {[%clk 0:02:35.8]} 9... Bb7 {[%clk
0:02:50.4]} 10. O-O {[%clk 0:02:32.1]} 10... Rc8 {[%clk 0:02:50.6]} 11. Qd2
{[%clk 0:02:28.6]} 11... Be7 {[%clk 0:02:49.1]} 12. Rac1 {[%clk 0:02:24.2]}
12... Qc7 {[%clk 0:02:49.1]} 13. a3 {[%clk 0:02:20.4]} 13... O-O {[%clk
0:02:46.8]} 14. b4 {[%clk 0:02:18.6]} 14... Rfd8 {[%clk 0:02:27]} 15. Rfd1
{[%clk 0:02:15.3]} 15... Qb8 {[%clk 0:02:20.1]} 16. Nb3 {[%clk 0:02:12.1]} 16...
Bc6 {[%clk 0:01:55.4]} 17. Bf1 {[%clk 0:02:06.5]} 17... Ne5 {[%clk 0:01:49.7]}
18. Qf2 {[%clk 0:01:59.9]} 18... Nfd7 {[%clk 0:01:42.4]} 19. h3 {[%clk
0:01:48.1]} 19... Ba8 {[%clk 0:01:32.5]} 20. f4 {[%clk 0:01:47.8]} 20... Nxc4
{[%clk 0:01:31.5]} 21. Bd4 {[%clk 0:01:42.9]} 21... e5 {[%clk 0:01:11.8]} 22.
Nd5 {[%clk 0:01:40.2]} 22... Bxd5 {[%clk 0:01:06]} 23. exd5 {[%clk 0:01:40.7]}
23... b5 {[%clk 0:00:54.9]} 24. fxe5 {[%clk 0:01:37.4]} 24... dxe5 {[%clk
0:00:54.9]} 25. Bc5 {[%clk 0:01:31]} 25... Bxc5 {[%clk 0:00:40.9]} 26. Nxc5
{[%clk 0:01:27.8]} 26... Nxc5 {[%clk 0:00:35.5]} 27. bxc5 {[%clk 0:01:23.4]}
27... Nxa3 {[%clk 0:00:35.3]} 28. Qa2 {[%clk 0:01:17.8]} 28... Nc4 {[%clk
0:00:07.9]} 29. Bxc4 {[%clk 0:01:17.8]} 29... bxc4 {[%clk 0:00:08]} 30. Qxc4
{[%clk 0:01:18.4]} 30... Qb5 {[%clk 0:00:06.3]} 31. c6 {[%clk 0:01:13]} 31...
Rd6 {[%clk 0:00:06.7]} 32. Qxb5 {[%clk 0:01:08.2]} 32... axb5 {[%clk 0:00:07]}
33. Rc5 {[%clk 0:01:08.8]} 33... b4 {[%clk 0:00:07.3]} 34. Rb1 {[%clk
0:01:03.1]} 34... Rcd8 {[%clk 0:00:01.6]} 35. Rxb4 {[%clk 0:01:02.1]} 35... f6
{[%clk 0:00:01.1]} 36. c7 {[%clk 0:01:00.5]} 1-0

[Event "*** Titled Tuesday Blitz"]
[Site "Chess.com"]
[Date "2020.05.19"]
[Round "3"]
[White "Anton_Demchenko"]
[Black "wnstop"]
[Result "0-1"]
[WhiteElo "2829"]
[BlackElo "2616"]
[TimeControl "180+1"]
[EndTime "12:28:06 PDT"]
[Termination "wnstop won by checkmate"]

1. d4 {[%clk 0:03:00.9]} 1... Nf6 {[%clk 0:02:59.5]} 2. Nf3 {[%clk 0:03:01.4]}
2... g6 {[%clk 0:02:59.3]} 3. Bf4 {[%clk 0:03:02]} 3... Bg7 {[%clk 0:02:59]} 4.
c3 {[%clk 0:03:02.7]} 4... d6 {[%clk 0:02:58]} 5. Nbd2 {[%clk 0:03:03.2]} 5...
O-O {[%clk 0:02:58.3]} 6. e4 {[%clk 0:03:03.5]} 6... Nbd7 {[%clk 0:02:52.8]} 7.
Be2 {[%clk 0:03:02.9]} 7... e5 {[%clk 0:02:52.9]} 8. dxe5 {[%clk 0:02:58]} 8...
dxe5 {[%clk 0:02:52.7]} 9. Nxe5 {[%clk 0:02:27.7]} 9... Nc5 {[%clk 0:01:47.3]}
10. Qc2 {[%clk 0:01:59.8]} 10... Nh5 {[%clk 0:01:32.2]} 11. Bxh5 {[%clk
0:01:35.1]} 11... Bxe5 {[%clk 0:01:31.6]} 12. Bxe5 {[%clk 0:01:35.4]} 12... Nd3+
{[%clk 0:01:31.4]} 13. Kf1 {[%clk 0:01:17.3]} 13... Nxe5 {[%clk 0:01:30.7]} 14.
Be2 {[%clk 0:01:07.4]} 14... f5 {[%clk 0:01:30.7]} 15. Re1 {[%clk 0:00:19.6]}
15... Be6 {[%clk 0:01:22.6]} 16. f3 {[%clk 0:00:10.9]} 16... Qh4 {[%clk
0:01:18.4]} 17. Rd1 {[%clk 0:00:04.5]} 17... Rae8 {[%clk 0:01:04.8]} 18. Kg1
{[%clk 0:00:05]} 18... Qg5 {[%clk 0:00:50.1]} 19. h4 {[%clk 0:00:04.5]} 19...
Qe3+ {[%clk 0:00:48.8]} 20. Kf1 {[%clk 0:00:05]} 20... Ng4 {[%clk 0:00:21.3]}
21. Nc4 {[%clk 0:00:03.2]} 21... Qf2# {[%clk 0:00:20.7]} 0-1

[Event "*** Titled Tuesday Blitz"]
[Site "Chess.com"]
[Date "2020.05.19"]
[Round "3"]
[White "FedaMaster"]
[Black "Enriquack"]
[Result "1-0"]
[WhiteElo "2533"]
[BlackElo "2304"]
[TimeControl "180+1"]
[EndTime "12:28:08 PDT"]
[Termination "FedaMaster won by resignation"]

1. e4 {[%clk 0:02:56.4]} 1... c5 {[%clk 0:02:59.9]} 2. d4 {[%clk 0:02:54]} 2...
cxd4 {[%clk 0:02:59.8]} 3. c3 {[%clk 0:02:54.3]} 3... dxc3 {[%clk 0:03:00.7]} 4.
Nxc3 {[%clk 0:02:54.4]} 4... e6 {[%clk 0:03:01.4]} 5. Nf3 {[%clk 0:02:54.5]}
5... Nc6 {[%clk 0:03:01.8]} 6. Bc4 {[%clk 0:02:55.1]} 6... a6 {[%clk 0:03:02.4]}
7. O-O {[%clk 0:02:54.5]} 7... b5 {[%clk 0:03:02.8]} 8. Bb3 {[%clk 0:02:54.7]}
8... Na5 {[%clk 0:03:03.3]} 9. Bg5 {[%clk 0:00:56.2]} 9... Ne7 {[%clk
0:02:23.9]} 10. e5 {[%clk 0:00:37.8]} 10... h6 {[%clk 0:02:20.6]} 11. Ne4 {[%clk
0:00:37.5]} 11... Nb7 {[%clk 0:02:12.6]} 12. Bf6 {[%clk 0:00:34.4]} 12... Qb6
{[%clk 0:01:50.1]} 13. Rc1 {[%clk 0:00:22.6]} 13... Nc6 {[%clk 0:01:43.4]} 14.
Bh4 {[%clk 0:00:12.8]} 14... Be7 {[%clk 0:01:30.1]} 15. Bg3 {[%clk 0:00:13.2]}
15... O-O {[%clk 0:01:27.3]} 16. Qd2 {[%clk 0:00:13]} 16... Nc5 {[%clk
0:01:25.9]} 17. Nf6+ {[%clk 0:00:09.7]} 17... gxf6 {[%clk 0:01:01.8]} 18. Qxh6
{[%clk 0:00:09.2]} 18... Nxb3 {[%clk 0:01:02.1]} 19. exf6 {[%clk 0:00:07.6]}
19... Bxf6 {[%clk 0:00:55.8]} 20. Ng5 {[%clk 0:00:08.1]} 20... Bxg5 {[%clk
0:00:49.4]} 21. Qxg5+ {[%clk 0:00:09]} 21... Kh8 {[%clk 0:00:49]} 22. Qh5+
{[%clk 0:00:09.7]} 22... Kg8 {[%clk 0:00:49.3]} 23. Qg5+ {[%clk 0:00:10.6]}
23... Kh8 {[%clk 0:00:49.7]} 24. Rc3 {[%clk 0:00:07.5]} 24... f6 {[%clk
0:00:28.6]} 25. Be5 {[%clk 0:00:06.8]} 1-0

[Event "*** Titled Tuesday Blitz"]
[Site "Chess.com"]
[Date "2020.05.19"]
[Round "3"]
[White "Keithonsky"]
[Black "praveenb2002"]
[Result "0-1"]
[WhiteElo "2432"]
[BlackElo "2718"]
[TimeControl "180+1"]
[EndTime "12:28:09 PDT"]
[Termination "praveenb2002 won by resignation"]

1. d4 {[%clk 0:03:00.9]} 1... d5 {[%clk 0:02:59.4]} 2. c4 {[%clk 0:02:59.3]}
2... c6 {[%clk 0:02:59.2]} 3. Nf3 {[%clk 0:02:58.9]} 3... Nf6 {[%clk 0:02:58.9]}
4. Qc2 {[%clk 0:02:58.8]} 4... dxc4 {[%clk 0:02:53.3]} 5. Qxc4 {[%clk
0:02:59.7]} 5... Bf5 {[%clk 0:02:52.4]} 6. Nc3 {[%clk 0:02:58.8]} 6... e6 {[%clk
0:02:52.2]} 7. g3 {[%clk 0:02:58.8]} 7... Nbd7 {[%clk 0:02:51.9]} 8. Bg2 {[%clk
0:02:59.1]} 8... Be7 {[%clk 0:02:51.1]} 9. O-O {[%clk 0:02:58.5]} 9... O-O
{[%clk 0:02:51.7]} 10. Nh4 {[%clk 0:02:57.5]} 10... Nb6 {[%clk 0:02:49.5]} 11.
Qb3 {[%clk 0:02:56.9]} 11... Qxd4 {[%clk 0:02:49.7]} 12. Nxf5 {[%clk 0:02:52.2]}
12... exf5 {[%clk 0:02:49.7]} 13. Be3 {[%clk 0:02:50.2]} 13... Qc4 {[%clk
0:02:49.9]} 14. Qc2 {[%clk 0:02:49.7]} 14... g6 {[%clk 0:02:42.8]} 15. b3 {[%clk
0:02:49.2]} 15... Qe6 {[%clk 0:02:42.8]} 16. Bxb6 {[%clk 0:02:44.6]} 16... axb6
{[%clk 0:02:42.1]} 17. e4 {[%clk 0:02:42.8]} 17... fxe4 {[%clk 0:02:37.2]} 18.
Nxe4 {[%clk 0:02:43.7]} 18... Nd5 {[%clk 0:02:37.4]} 19. Rfe1 {[%clk 0:02:40.4]}
19... Qf5 {[%clk 0:02:35.6]} 20. a4 {[%clk 0:02:35.4]} 20... Bb4 {[%clk
0:02:33]} 21. Re2 {[%clk 0:02:33.7]} 21... Rfe8 {[%clk 0:02:30.9]} 22. Rd1
{[%clk 0:02:32.4]} 22... Re7 {[%clk 0:02:25]} 23. h4 {[%clk 0:02:30.7]} 23...
Rae8 {[%clk 0:02:24.3]} 24. Kh2 {[%clk 0:02:31.1]} 24... Qe5 {[%clk 0:02:02.2]}
25. Rd3 {[%clk 0:02:20.3]} 25... Qg7 {[%clk 0:02:00.4]} 26. Bf3 {[%clk 0:02:02]}
26... h6 {[%clk 0:01:48.5]} 27. Qc4 {[%clk 0:01:37.4]} 27... f5 {[%clk 0:01:34]}
28. Nc3 {[%clk 0:01:33.2]} 28... Bxc3 {[%clk 0:01:11.6]} 29. Rxe7 {[%clk
0:01:30.7]} 29... Rxe7 {[%clk 0:01:11.8]} 30. Bxd5+ {[%clk 0:01:30.7]} 30...
cxd5 {[%clk 0:01:12.1]} 31. Qxc3 {[%clk 0:01:31.4]} 31... Qxc3 {[%clk
0:01:08.1]} 32. Rxc3 {[%clk 0:01:32.3]} 32... Rd7 {[%clk 0:01:08.5]} 33. f4
{[%clk 0:01:28.8]} 33... d4 {[%clk 0:01:07.4]} 34. Rd3 {[%clk 0:01:29.2]} 34...
Kf7 {[%clk 0:01:08.1]} 35. Kg2 {[%clk 0:01:28.5]} 35... Ke6 {[%clk 0:01:08.7]}
36. Kf2 {[%clk 0:01:28.4]} 36... Kd5 {[%clk 0:01:09.3]} 37. Ke2 {[%clk
0:01:24.9]} 37... Ke4 {[%clk 0:01:05.1]} 38. Rd1 {[%clk 0:01:22.2]} 38... Rc7
{[%clk 0:01:02.1]} 39. Kd2 {[%clk 0:01:20.4]} 39... Kf3 {[%clk 0:00:57.4]} 40.
Kd3 {[%clk 0:01:18.6]} 40... Rc6 {[%clk 0:00:53.8]} 41. b4 {[%clk 0:01:15.6]}
41... Kxg3 {[%clk 0:00:53.6]} 42. Rg1+ {[%clk 0:01:14.5]} 42... Kxf4 {[%clk
0:00:51.2]} 43. Kxd4 {[%clk 0:01:14.6]} 43... Rd6+ {[%clk 0:00:51.6]} 44. Kc4
{[%clk 0:01:13.8]} 44... g5 {[%clk 0:00:52.1]} 45. hxg5 {[%clk 0:01:14.7]} 45...
hxg5 {[%clk 0:00:52.2]} 46. Kb5 {[%clk 0:01:15.4]} 46... g4 {[%clk 0:00:51.6]}
47. Rf1+ {[%clk 0:01:16]} 47... Kg5 {[%clk 0:00:51.5]} 48. a5 {[%clk 0:01:15.7]}
48... bxa5 {[%clk 0:00:51.3]} 49. bxa5 {[%clk 0:01:16.6]} 49... f4 {[%clk
0:00:51]} 50. Kc5 {[%clk 0:01:17.5]} 50... Rf6 {[%clk 0:00:50.2]} 51. Rb1 {[%clk
0:01:18.1]} 51... Rf7 {[%clk 0:00:49.5]} 52. Kd6 {[%clk 0:01:17.1]} 52... f3
{[%clk 0:00:47.2]} 53. Ke6 {[%clk 0:01:16.9]} 53... Rf6+ {[%clk 0:00:47.6]} 54.
Ke7 {[%clk 0:01:16.2]} 54... f2 {[%clk 0:00:44.9]} 55. Rxb7 {[%clk 0:01:16.3]}
55... f1=Q {[%clk 0:00:44.8]} 56. Rb5+ {[%clk 0:01:17.2]} 56... Kh4 {[%clk
0:00:44.6]} 57. Re5 {[%clk 0:01:16]} 57... Rf7+ {[%clk 0:00:42.9]} 0-1